bitfinex-derivatives/quotes_BTCF0:USTF0_20260119
["timestamp","ask_amount","ask_price","bid_price","bid_amount"]
[1768859504570,0.010754,93047.0,93033.0,0.010755]
[1768859504571,0.13607778,93049.0,93030.0,0.08346654]
[1768859504881,0.13607778,93049.0,93039.0,0.18038829]
[1768859505585,0.010754,93046.0,93039.0,0.18038829]
[1768859505766,0.13607778,93049.0,93036.0,0.18038829]
[1768859505966,0.13607778,93049.0,93039.0,0.18038829]
[1768859506867,0.010754,93046.0,93039.0,0.18038829]
[1768859507067,0.010754,93046.0,93036.0,0.18038829]
[1768859507273,0.09676,93049.0,93039.0,0.18038829]
[1768859508180,0.010754,93045.0,93039.0,0.18038829]
[1768859508380,0.010754,93045.0,93035.0,0.18038829]
[1768859510079,0.04123294,93045.0,93030.0,0.18038829]
[1768859510280,0.04123294,93044.0,93030.0,0.18038829]
[1768859510671,0.04123294,93044.0,93030.0,0.19114429]
[1768859510873,0.04123294,93048.0,93030.0,0.19114429]
[1768859511175,0.04123294,93047.0,93030.0,0.18038829]
[1768859513081,0.010754,93041.0,93030.0,0.18038829]
[1768859515484,0.010755,93039.0,93030.0,0.18038829]
[1768859518685,0.010754,93041.0,93030.0,0.18038829]
[1768859518879,0.010754,93043.0,93030.0,0.31744821]
[1768859519078,0.010754,93043.0,93031.0,0.08852478]
[1768859519386,0.010754,93043.0,93031.0,0.14781592]
[1768859519679,0.010754,93043.0,93032.0,0.010755]
[1768859520281,0.09676,93049.0,93033.0,0.010755]
[1768859520484,0.010754,93044.0,93033.0,0.010755]
[1768859522487,0.107514,93049.0,93034.0,0.14781492]
[1768859522784,0.010754,93047.0,93035.0,0.13705992]
[1768859522986,0.010754,93046.0,93035.0,0.13705992]
[1768859523186,0.010754,93046.0,93035.0,0.08852478]
[1768859524092,0.010754,93044.0,93031.0,0.04853514]
[1768859524689,0.09676,93049.0,93031.0,0.04853514]
[1768859524878,0.010754,93042.0,93031.0,0.04853514]
[1768859525890,0.010754,93042.0,93031.0,0.13705992]
[1768859527787,0.010754,93045.0,93033.0,0.010755]
[1768859528490,0.010754,93047.0,93031.0,0.13705992]
[1768859528690,0.010754,93047.0,93032.0,0.13705992]
[1768859528990,0.09676,93049.0,93032.0,0.14781492]
[1768859528991,0.010754,93045.0,93032.0,0.14781492]
[1768859529582,0.010754,93047.0,93034.0,0.010755]
[1768859529792,0.010754,93047.0,93032.0,0.13705992]
[1768859531392,0.010754,93047.0,93035.0,0.010755]
[1768859532798,0.09676,93049.0,93032.0,0.14781492]
[1768859533194,0.09676,93049.0,93032.0,0.13705992]
[1768859533896,0.010754,93046.0,93035.0,0.010755]
[1768859534595,0.107514,93049.0,93035.0,0.010755]
[1768859535094,0.010754,93048.0,93035.0,0.010755]
[1768859536493,0.09676,93049.0,93036.0,0.010755]
[1768859537598,0.107514,93049.0,93036.0,0.010755]
[1768859537998,0.107514,93049.0,93035.0,0.010755]
[1768859539302,0.09676,93049.0,93035.0,0.010755]
[1768859539702,0.107514,93049.0,93035.0,0.010755]
[1768859540699,0.09676,93049.0,93035.0,0.010755]
[1768859541085,0.09676,93049.0,93032.0,0.13705992]
[1768859541086,0.09676,93049.0,93036.0,0.010755]
[1768859544004,0.09676,93049.0,93037.0,0.010755]
[1768859544196,0.09676,93049.0,93038.0,0.010755]
[1768859546406,0.09676,93049.0,93039.0,0.010755]
[1768859546611,0.09676,93049.0,93041.0,0.010754]
[1768859546806,0.0968,93049.0,93040.0,0.010755]
[1768859547007,0.0968,93049.0,93039.0,0.18038829]
[1768859548194,0.0968,93049.0,93032.0,0.13560275]
[1768859549009,0.0968,93049.0,93039.0,0.010755]
[1768859549209,0.0968,93049.0,93041.0,0.010754]
[1768859553009,0.0968,93049.0,93043.0,0.010754]
[1768859553716,0.0968,93049.0,93033.0,0.09256566]
[1768859554208,0.0968,93049.0,93042.0,0.010754]
[1768859555616,0.0968,93049.0,93043.0,0.010754]
[1768859556310,0.0968,93049.0,93045.0,0.010754]
[1768859557313,0.0968,93049.0,93043.0,0.010754]
[1768859558109,0.0968,93049.0,93035.0,0.010755]
[1768859558506,0.04636607,93048.0,93040.0,0.010754]
[1768859558718,0.0968,93049.0,93040.0,0.010754]
[1768859559120,0.0968,93049.0,93042.0,0.010754]
[1768859559515,0.0968,93049.0,93041.0,0.010754]
[1768859560419,0.23555393,93052.0,93041.0,0.010754]
[1768859560722,0.23555393,93052.0,93042.0,0.010754]
[1768859561421,0.23555393,93052.0,93043.0,0.010754]
[1768859562226,0.0968,93052.0,93040.0,0.14409356]
[1768859562416,0.0968,93058.0,93051.0,0.010753]
[1768859562620,0.0968,93058.0,93049.0,0.010754]
[1768859562927,0.0968,93058.0,93042.0,0.14409356]
[1768859562928,0.0968,93058.0,93047.0,0.010754]
[1768859563127,0.0968,93058.0,93048.0,0.010754]
[1768859565231,0.14470305,93058.0,93045.0,0.010754]
[1768859565432,0.14470305,93058.0,93046.0,0.010754]
[1768859565732,0.14470305,93058.0,93044.0,0.00016116]
[1768859565733,0.14470305,93058.0,93047.0,0.010754]
[1768859566833,0.14470305,93058.0,93044.0,0.00016116]
[1768859567427,0.14470305,93058.0,93052.0,0.010753]
[1768859567631,0.0968,93058.0,93052.0,0.010753]
[1768859568437,0.0968,93058.0,93049.0,0.010753]
[1768859568635,0.0968,93058.0,93051.0,0.010753]
[1768859570641,0.0968,93058.0,93044.0,0.00016116]
[1768859570642,0.14470305,93058.0,93044.0,0.00016116]
[1768859571448,0.14470305,93058.0,93049.0,0.010753]
[1768859573741,0.14470305,93058.0,93051.0,0.010753]
[1768859576140,0.14470305,93058.0,93049.0,0.010753]
[1768859576842,0.14470305,93058.0,93051.0,0.010753]
[1768859577033,0.14470305,93058.0,93044.0,0.00016116]
[1768859577742,0.14470305,93058.0,93053.0,0.010753]
[1768859579545,0.14363232,93054.0,93030.0,0.010756]
[1768859579746,0.05246366,93052.0,93040.0,0.010754]
[1768859579948,0.05246366,93050.0,93037.0,0.010755]
[1768859580447,0.05246366,93050.0,93030.0,0.09439631]
[1768859580645,0.05246366,93050.0,93035.0,0.010755]
[1768859580947,0.05246366,93050.0,93030.0,0.09439631]
[1768859581447,0.05246366,93050.0,93037.0,0.010755]
[1768859585250,0.05246366,93050.0,93039.0,0.010755]
[1768859586452,0.05246366,93050.0,93041.0,0.010754]
[1768859587254,0.05246366,93050.0,93031.0,0.09439631]
[1768859587453,0.05246366,93050.0,93041.0,0.010754]
[1768859589755,0.05246366,93050.0,93040.0,0.010755]
[1768859590850,0.05246366,93050.0,93032.0,0.010755]
[1768859592449,0.05246366,93050.0,93041.0,0.010754]
[1768859592843,0.05246366,93050.0,93042.0,0.010754]
[1768859593259,0.05246366,93055.0,93044.0,0.010754]
[1768859593755,0.05246366,93055.0,93046.0,0.010754]
[1768859595164,0.05246366,93055.0,93041.0,0.010754]
[1768859595458,0.05246366,93053.0,93041.0,0.010754]
[1768859596159,0.05246366,93053.0,93033.0,0.14324046]
[1768859597459,0.05246366,93053.0,93043.0,0.010754]
[1768859598261,0.05246366,93053.0,93041.0,0.010754]
[1768859605960,0.05246366,93053.0,93033.0,0.14324046]
[1768859606160,0.05246366,93053.0,93034.0,0.14603639]
[1768859606368,0.05246366,93053.0,93046.0,0.010754]
[1768859606669,0.05246366,93053.0,93043.0,0.010754]
[1768859608668,0.05246366,93053.0,93045.0,0.010754]
[1768859608969,0.05246366,93053.0,93036.0,0.010755]
[1768859610870,0.05246366,93053.0,93045.0,0.010754]
[1768859611070,0.05246366,93053.0,93036.0,0.010755]
[1768859612472,0.05246366,93053.0,93045.0,0.010754]
[1768859612674,0.05246366,93053.0,93036.0,0.010755]
[1768859612971,0.05246366,93053.0,93045.0,0.010754]
[1768859613171,0.05246366,93053.0,93036.0,0.010755]
[1768859614677,0.05246366,93053.0,93045.0,0.010754]
[1768859614877,0.05246366,93053.0,93036.0,0.010755]
[1768859615369,0.05246366,93053.0,93045.0,0.010754]
[1768859615574,0.05246366,93053.0,93036.0,0.010755]
[1768859616371,0.05246366,93053.0,93045.0,0.010754]
[1768859616674,0.05246366,93053.0,93036.0,0.010755]
[1768859617370,0.05246366,93053.0,93045.0,0.010754]
[1768859618074,0.05246366,93053.0,93047.0,0.010754]
[1768859618274,0.05246366,93053.0,93037.0,0.010755]
[1768859618879,0.05246366,93053.0,93046.0,0.010754]
[1768859619079,0.05246366,93053.0,93037.0,0.010755]
[1768859620377,0.05246366,93053.0,93046.0,0.010754]
[1768859620576,0.05246366,93053.0,93036.0,0.010755]
[1768859620777,0.05246366,93053.0,93046.0,0.010754]
[1768859620972,0.05246366,93053.0,93034.0,0.09433903]
[1768859622473,0.05246366,93053.0,93046.0,0.010754]
[1768859622673,0.05246366,93053.0,93034.0,0.09433903]
[1768859622874,0.05246366,93053.0,93040.0,0.1803728]
[1768859623376,0.05246366,93053.0,93046.0,0.010754]
[1768859624677,0.05246366,93053.0,93040.0,0.1803728]
[1768859625387,0.05246366,93053.0,93046.0,0.010754]
[1768859631185,0.05246366,93053.0,93040.0,0.1803728]
[1768859631983,0.05246366,93053.0,93044.0,0.010754]
[1768859634585,0.05246366,93053.0,93040.0,0.1803728]
[1768859635084,0.05246366,93053.0,93046.0,0.010754]
[1768859635275,0.05246366,93053.0,93047.0,0.010754]
[1768859635580,0.05246366,93053.0,93048.0,0.010754]
[1768859637986,0.05246366,93053.0,93040.0,0.1803728]
[1768859638186,0.05246366,93053.0,93046.0,0.010754]
[1768859639686,0.05246366,93053.0,93040.0,0.1803728]
[1768859639987,0.05246366,93053.0,93045.0,0.010754]
[1768859640386,0.05246366,93053.0,93042.0,0.010754]
[1768859642089,0.05246366,93053.0,93043.0,0.010754]
[1768859642686,0.05246366,93053.0,93044.0,0.010754]
[1768859642890,0.09554874,93067.0,93046.0,0.14662879]
[1768859643090,0.12057412,93063.0,93050.0,0.1803728]
[1768859643290,0.02377412,93062.0,93050.0,0.1803728]
[1768859643489,0.02377412,93061.0,93050.0,0.1911258]
[1768859643689,0.14740432,93063.0,93050.0,0.010753]
[1768859643884,0.02377157,93062.0,93050.0,0.010753]
[1768859644078,0.02377157,93061.0,93050.0,0.010753]
[1768859644288,0.15815632,93063.0,93048.0,0.010754]
[1768859644483,0.02377062,93062.0,93048.0,0.010754]
[1768859644686,0.02377062,93061.0,93048.0,0.010754]
[1768859644976,0.15815632,93063.0,93048.0,0.010754]
[1768859645190,0.02377079,93062.0,93048.0,0.010754]
[1768859645392,0.02377079,93061.0,93048.0,0.010754]
[1768859645593,0.15815632,93063.0,93049.0,0.010753]
[1768859645890,0.02377,93062.0,93049.0,0.010753]
[1768859646085,0.02377,93061.0,93049.0,0.010753]
[1768859646389,0.15815632,93063.0,93049.0,0.010753]
[1768859646590,0.15815632,93063.0,93046.0,0.09558549]
[1768859647482,0.15815632,93063.0,93051.0,0.010753]
[1768859649588,0.15815632,93063.0,93050.0,0.1803728]
[1768859649794,0.010752,93060.0,93050.0,0.1803728]
[1768859650094,0.010752,93060.0,93043.0,0.0510433]
[1768859651492,0.010752,93060.0,93046.0,0.010754]
[1768859654100,0.010752,93060.0,93049.0,0.010753]
[1768859654301,0.010752,93062.0,93049.0,0.010753]
[1768859654599,0.06135632,93062.0,93049.0,0.010753]
[1768859654903,0.010752,93061.0,93049.0,0.010753]
[1768859656004,0.010752,93061.0,93047.0,0.010754]
[1768859656507,0.010752,93060.0,93047.0,0.010754]
[1768859658007,0.010752,93060.0,93048.0,0.010754]
[1768859658305,0.06135632,93062.0,93048.0,0.010754]
[1768859659406,0.010752,93061.0,93048.0,0.010754]
[1768859661100,0.05060432,93062.0,93045.0,0.010754]
[1768859661296,0.05060432,93062.0,93042.0,0.14662879]
[1768859661907,0.010752,93059.0,93042.0,0.14662879]
[1768859662308,0.010753,93058.0,93045.0,0.010754]
[1768859662510,0.010753,93057.0,93045.0,0.010754]
[1768859667616,0.010753,93057.0,93046.0,0.010754]
[1768859668718,0.010752,93059.0,93047.0,0.010754]
[1768859668921,0.010753,93058.0,93047.0,0.010754]
[1768859669813,0.010753,93058.0,93046.0,0.010754]
[1768859678719,0.010752,93061.0,93043.0,0.15892254]
[1768859678927,0.010752,93061.0,93044.0,0.15892254]
[1768859679223,0.010752,93061.0,93046.0,0.15892254]
[1768859679725,0.010752,93061.0,93047.0,0.010754]
[1768859685228,0.09912396,93064.0,93046.0,0.15892254]
[1768859685532,0.010752,93063.0,93049.0,0.010754]
[1768859685730,0.09912396,93064.0,93046.0,0.15892254]
[1768859685931,0.010752,93062.0,93048.0,0.010754]
[1768859687337,0.010752,93062.0,93049.0,0.010753]
[1768859687630,0.010752,93062.0,93046.0,0.15892254]
[1768859687834,0.10987596,93064.0,93051.0,0.010753]
[1768859688737,0.02386127,93063.0,93051.0,0.010753]
[1768859689035,0.10987596,93064.0,93051.0,0.010753]
[1768859689234,0.02386276,93063.0,93051.0,0.010753]
[1768859689532,0.10987596,93064.0,93051.0,0.010753]
[1768859691130,0.010752,93062.0,93051.0,0.010753]
[1768859700138,0.010752,93062.0,93047.0,0.06014849]
[1768859700338,0.09912396,93064.0,93047.0,0.06014849]
[1768859700838,0.010752,93063.0,93050.0,0.010753]
[1768859701842,0.09912396,93064.0,93047.0,0.06014849]
[1768859702041,0.010752,93061.0,93048.0,0.010754]
[1768859702236,0.010752,93061.0,93047.0,0.06014849]
[1768859702237,0.010752,93061.0,93049.0,0.010753]
[1768859702436,0.09676,93073.0,93060.0,0.15827541]
[1768859702637,0.02385551,93072.0,93063.0,0.14752341]
[1768859702938,0.010751,93075.0,93063.0,0.14752341]
[1768859703140,0.02373234,93074.0,93063.0,0.14752341]
[1768859703341,0.010751,93075.0,93063.0,0.14752341]
[1768859703541,0.010751,93075.0,93063.0,0.08945246]
[1768859705334,0.01075,93078.0,93063.0,0.15827541]
[1768859705637,0.01075,93076.0,93063.0,0.15827541]
[1768859705841,0.09676,93079.0,93065.0,0.010752]
[1768859711548,0.15486862,93079.0,93065.0,0.010752]
[1768859712450,0.01075,93078.0,93065.0,0.010752]
[1768859714049,0.15486862,93079.0,93067.0,0.010751]
[1768859714249,0.16561862,93079.0,93067.0,0.010751]
[1768859714449,0.01075,93077.0,93060.0,0.05807095]
[1768859716550,0.01075,93077.0,93063.0,0.010752]
[1768859717849,0.14832125,93076.0,93059.0,0.00016116]
[1768859718038,0.05810862,93068.0,93046.0,0.14752341]
[1768859718241,0.010751,93071.0,93056.0,0.010753]
[1768859718750,0.010751,93071.0,93057.0,0.010752]
[1768859719851,0.05810862,93072.0,93059.0,0.010752]
[1768859720053,0.06885962,93072.0,93059.0,0.010752]
[1768859720645,0.010751,93072.0,93059.0,0.010752]
[1768859721046,0.09021263,93075.0,93053.0,0.08945246]
[1768859721251,0.010751,93074.0,93060.0,0.010752]
[1768859722850,0.010751,93073.0,93060.0,0.010752]
[1768859724354,0.14832125,93075.0,93060.0,0.010752]
[1768859724655,0.0694421,93074.0,93057.0,0.010753]
[1768859726353,0.010751,93072.0,93057.0,0.010753]
[1768859734761,0.010751,93070.0,93057.0,0.010753]
[1768859742777,0.0586911,93074.0,93057.0,0.010753]
[1768859743177,0.010751,93069.0,93057.0,0.010753]
[1768859743378,0.0586911,93074.0,93055.0,0.010753]
[1768859744284,0.010751,93069.0,93056.0,0.010753]
[1768859745483,0.010751,93069.0,93058.0,0.010752]
[1768859746384,0.010751,93071.0,93058.0,0.010752]
[1768859749785,0.010751,93069.0,93059.0,0.010752]
[1768859750090,0.010751,93069.0,93057.0,0.010753]
[1768859750489,0.010751,93072.0,93060.0,0.010752]
[1768859750688,0.15347889,93077.0,93056.0,0.14697207]
[1768859750989,0.010751,93074.0,93061.0,0.010752]
[1768859754590,0.15347889,93077.0,93061.0,0.010752]
[1768859754892,0.02325509,93076.0,93061.0,0.010752]
[1768859755090,0.15347889,93077.0,93061.0,0.010752]
[1768859755291,0.02325509,93076.0,93061.0,0.010752]
[1768859755493,0.010751,93073.0,93061.0,0.010752]
[1768859766704,0.010751,93072.0,93061.0,0.010752]
[1768859775416,0.15347889,93077.0,93062.0,0.010752]
[1768859775613,0.02326123,93076.0,93062.0,0.010752]
[1768859775813,0.15347889,93077.0,93062.0,0.010752]
[1768859776009,0.02326124,93076.0,93062.0,0.010752]
[1768859776312,0.15347889,93077.0,93062.0,0.010752]
[1768859776513,0.010751,93074.0,93062.0,0.010752]
[1768859782418,0.010751,93073.0,93062.0,0.010752]
[1768859811241,0.010751,93073.0,93060.0,0.010752]
[1768859812634,0.010751,93073.0,93061.0,0.010752]
[1768859816046,0.010751,93073.0,93061.0,0.05320194]
[1768859816648,0.010751,93073.0,93061.0,0.010752]
[1768859819853,0.010751,93075.0,93062.0,0.010752]
[1768859820056,0.09676,93076.0,93063.0,0.010752]
[1768859820246,0.107511,93076.0,93063.0,0.010752]
[1768859820551,0.09676,93076.0,93062.0,0.05494568]
[1768859820757,0.00236346,93084.0,93073.0,0.05494568]
[1768859820955,0.01075,93081.0,93074.0,0.08092624]
[1768859821259,0.00236346,93084.0,93068.0,0.13587192]
[1768859821456,0.00236346,93084.0,93068.0,0.08092624]
[1768859821457,0.01075,93081.0,93068.0,0.08092624]
[1768859822158,0.01075,93081.0,93068.0,0.09167724]
[1768859822458,0.01075,93079.0,93068.0,0.08092624]
[1768859822647,0.00236346,93084.0,93068.0,0.08092624]
[1768859822648,0.01075,93080.0,93068.0,0.08092624]
[1768859822848,0.01075,93078.0,93068.0,0.08092624]
[1768859825463,0.01075,93077.0,93063.0,0.010752]
[1768859828464,0.01075,93080.0,93065.0,0.010752]
[1768859829258,0.01075,93079.0,93065.0,0.010752]
[1768859829862,0.01075,93078.0,93065.0,0.010752]
[1768859831065,0.05163383,93082.0,93063.0,0.010752]
[1768859831462,0.05163383,93082.0,93062.0,0.13587192]
[1768859832256,0.05163383,93082.0,93062.0,0.08092624]
[1768859832461,0.010751,93068.0,93060.0,0.00016116]
[1768859832666,0.05163383,93074.0,93060.0,0.00016116]
[1768859834366,0.08732123,93078.0,93060.0,0.00016116]
[1768859834570,0.010751,93071.0,93060.0,0.00016116]
[1768859837576,0.010751,93072.0,93060.0,0.01091316]
[1768859838274,0.010751,93070.0,93060.0,0.00016116]
[1768859838867,0.010751,93073.0,93060.0,0.00016116]
[1768859839372,0.010751,93072.0,93060.0,0.00016116]
[1768859839779,0.010751,93070.0,93060.0,0.00016116]
[1768859840081,0.010751,93073.0,93060.0,0.00016116]
[1768859840778,0.010751,93074.0,93060.0,0.00016116]
[1768859841777,0.010751,93074.0,93063.0,0.010752]
[1768859842277,0.05163383,93076.0,93063.0,0.010752]
[1768859842278,0.06238383,93076.0,93063.0,0.010752]
[1768859843083,0.010751,93073.0,93061.0,0.010752]
[1768859843879,0.06238383,93076.0,93062.0,0.010752]
[1768859844181,0.010751,93074.0,93062.0,0.010752]
[1768859845782,0.010751,93072.0,93060.0,0.01091316]
[1768859846085,0.010751,93069.0,93060.0,0.00016116]
[1768859846689,0.06372671,93072.0,93060.0,0.00016116]
[1768859847875,0.06372671,93072.0,93061.0,0.010752]
[1768859848981,0.010751,93070.0,93060.0,0.00016116]
[1768859849378,0.05297571,93072.0,93060.0,0.00016116]
[1768859849379,0.010751,93069.0,93060.0,0.00016116]
[1768859850684,0.05297571,93072.0,93060.0,0.00016116]
[1768859850685,0.010751,93071.0,93060.0,0.00016116]
[1768859850983,0.05297571,93072.0,93060.0,0.00016116]
[1768859851383,0.010751,93070.0,93060.0,0.00016116]
[1768859851983,0.010751,93069.0,93060.0,0.00016116]
[1768859852178,0.010751,93068.0,93060.0,0.00016116]
[1768859852379,0.010752,93067.0,93060.0,0.00016116]
[1768859852580,0.05297571,93072.0,93060.0,0.00016116]
[1768859853384,0.010751,93068.0,93060.0,0.00016116]
[1768859854386,0.010751,93071.0,93060.0,0.00016116]
[1768859854787,0.05297571,93072.0,93060.0,0.00016116]
[1768859855090,0.06372671,93072.0,93060.0,0.00016116]
[1768859856188,0.05297571,93072.0,93060.0,0.00016116]
[1768859856380,0.05297571,93072.0,93056.0,0.010753]
[1768859856581,0.010751,93069.0,93056.0,0.010753]
[1768859860485,0.010751,93069.0,93052.0,0.08330683]
[1768859860789,0.06372671,93072.0,93057.0,0.010753]
[1768859860990,0.010751,93071.0,93057.0,0.010753]
[1768859863193,0.010751,93071.0,93058.0,0.010752]
[1768859865194,0.010751,93070.0,93058.0,0.010752]
[1768859865396,0.010751,93070.0,93059.0,0.010752]
[1768859865591,0.010751,93068.0,93056.0,0.010753]
[1768859866902,0.05297571,93072.0,93052.0,0.13251392]
[1768859867097,0.010751,93074.0,93044.0,0.00236447]
[1768859867098,0.04759316,93063.0,93049.0,0.07964137]
[1768859867400,0.010753,93058.0,93049.0,0.00236436]
[1768859867996,0.04759316,93061.0,93049.0,0.00236436]
[1768859867997,0.010752,93060.0,93049.0,0.00236436]
[1768859868297,0.04759316,93061.0,93049.0,0.00236436]
[1768859868597,0.010752,93060.0,93049.0,0.00236436]
[1768859870201,0.04759316,93061.0,93049.0,0.00236436]
[1768859871304,0.010752,93060.0,93049.0,0.01311836]
[1768859871603,0.04759316,93061.0,93049.0,0.01311836]
[1768859874908,0.010752,93063.0,93051.0,0.010753]
[1768859875807,0.04373606,93065.0,93049.0,0.01311736]
[1768859876006,0.010752,93061.0,93049.0,0.01311736]
[1768859877802,0.010752,93061.0,93049.0,0.00236436]
[1768859879012,0.04295299,93064.0,93049.0,0.00236436]
[1768859880606,0.010752,93061.0,93049.0,0.00236436]
[1768859881615,0.05370499,93064.0,93050.0,0.010753]
[1768859882614,0.010752,93062.0,93050.0,0.010753]
[1768859883813,0.04172256,93063.0,93049.0,0.00236436]
[1768859884012,0.010752,93060.0,93049.0,0.00236436]
[1768859884608,0.010752,93062.0,93049.0,0.00236436]
[1768859884808,0.010752,93062.0,93050.0,0.010753]
[1768859885209,0.09676,93066.0,93050.0,0.07823301]
[1768859885417,0.010752,93063.0,93050.0,0.08898601]
[1768859886817,0.14899491,93066.0,93051.0,0.010753]
[1768859887019,0.14899491,93066.0,93052.0,0.010753]
[1768859888618,0.010752,93063.0,93050.0,0.08898601]
[1768859889418,0.0400359,93065.0,93049.0,0.00236436]
[1768859890121,0.010752,93060.0,93049.0,0.00236436]
[1768859890322,0.010752,93059.0,93049.0,0.00236436]
[1768859891114,0.03875951,93063.0,93049.0,0.00236436]
[1768859892519,0.010753,93058.0,93049.0,0.00236436]
[1768859892720,0.010753,93056.0,93049.0,0.00236436]
[1768859893420,0.010753,93057.0,93049.0,0.00236436]
[1768859896125,0.010752,93059.0,93049.0,0.00236436]
[1768859897224,0.0371543,93063.0,93049.0,0.00236436]
[1768859897425,0.0371543,93062.0,93049.0,0.00236436]
[1768859897726,0.010753,93057.0,93049.0,0.00236436]
[1768859899925,0.0371543,93062.0,93049.0,0.00236436]
[1768859900826,0.010753,93058.0,93049.0,0.00236436]
[1768859901222,0.0371543,93062.0,93049.0,0.00236436]
[1768859901223,0.010752,93061.0,93049.0,0.00236436]
[1768859901418,0.010752,93059.0,93049.0,0.00236436]
[1768859901930,0.0371543,93062.0,93049.0,0.00236436]
[1768859902629,0.010752,93058.0,93049.0,0.00236436]
[1768859903431,0.010752,93061.0,93049.0,0.01311736]
[1768859908534,0.010752,93060.0,93049.0,0.00236436]
[1768859909634,0.010752,93059.0,93049.0,0.00236436]
[1768859909934,0.010753,93058.0,93049.0,0.00236436]
[1768859913440,0.010753,93056.0,93049.0,0.00236436]
[1768859914341,0.010752,93058.0,93049.0,0.00236436]
[1768859917644,0.0371543,93062.0,93049.0,0.00236436]
[1768859918448,0.010753,93057.0,93049.0,0.00236436]
[1768859919944,0.010752,93059.0,93049.0,0.00236436]
[1768859925455,0.04221249,93061.0,93049.0,0.00236436]
[1768859926844,0.04221249,93061.0,93049.0,0.01311736]
[1768859928954,0.03146049,93061.0,93049.0,0.01311736]
[1768859929649,0.03146049,93061.0,93050.0,0.010753]
[1768859931856,0.03146049,93061.0,93051.0,0.010753]
[1768859937559,0.04134102,93065.0,93051.0,0.010753]
[1768859938160,0.010752,93063.0,93049.0,0.01311836]
[1768859938557,0.03052689,93064.0,93049.0,0.00236436]
[1768859939563,0.010752,93061.0,93049.0,0.01311736]
[1768859940465,0.03039815,93062.0,93049.0,0.00236436]
[1768859941359,0.03039815,93062.0,93049.0,0.01311736]
[1768859941757,0.03039815,93062.0,93051.0,0.010753]
[1768859942066,0.03039815,93062.0,93052.0,0.010753]
[1768859942465,0.03039815,93062.0,93049.0,0.00236436]
[1768859942861,0.03039815,93062.0,93052.0,0.010753]
[1768859944864,0.03039815,93062.0,93053.0,0.010753]
[1768859945163,0.03039815,93062.0,93049.0,0.00236436]
[1768859945468,0.03009023,93065.0,93049.0,0.00236436]
[1768859945767,0.03009023,93065.0,93054.0,0.010753]
[1768859948966,0.03009023,93065.0,93052.0,0.010753]
[1768859949271,0.03009023,93065.0,93053.0,0.010753]
[1768859953875,0.01398404,93050.0,93037.0,0.07727701]
[1768859954079,0.01398404,93050.0,93033.0,0.07727701]
[1768859954278,0.01398404,93050.0,93039.0,0.010755]
[1768859954480,0.01398404,93050.0,93032.0,0.06714511]
[1768859954681,0.01398404,93050.0,93038.0,0.010755]
[1768859954973,0.010754,93049.0,93032.0,0.06714511]
[1768859955282,0.010754,93049.0,93037.0,0.010755]
[1768859955488,0.010754,93048.0,93034.0,0.010755]
[1768859955671,0.010754,93047.0,93032.0,0.10988879]
[1768859955870,0.010754,93047.0,93032.0,0.12064379]
[1768859956072,0.010754,93047.0,93032.0,0.12064443]
[1768859956975,0.010754,93047.0,93032.0,0.07790011]
[1768859957174,0.010754,93047.0,93032.0,0.12062531]
[1768859957374,0.01398404,93050.0,93032.0,0.12062531]
[1768859957575,0.01398404,93050.0,93032.0,0.10987031]
[1768859957776,0.010754,93044.0,93032.0,0.10987031]
[1768859957979,0.010754,93044.0,93032.0,0.06714511]
[1768859958177,0.010754,93044.0,93032.0,0.10987656]
[1768859959185,0.010754,93044.0,93032.0,0.10935158]
[1768859959483,0.01398404,93050.0,93029.0,0.00236487]
[1768859959677,0.01545263,93047.0,93032.0,0.04220647]
[1768859959984,0.01545263,93047.0,93030.0,0.09676]
[1768859960985,0.010754,93044.0,93031.0,0.010756]
[1768859962783,0.010754,93044.0,93030.0,0.09676]
[1768859963890,0.01579931,93050.0,93030.0,0.09676]
[1768859964385,0.01579931,93050.0,93030.0,0.107516]
[1768859965385,0.010754,93045.0,93032.0,0.010755]
[1768859966492,0.01579931,93050.0,93031.0,0.06939033]
[1768859966690,0.01579931,93050.0,93031.0,0.08014533]
[1768859966886,0.010754,93046.0,93032.0,0.010755]
[1768859968397,0.010754,93045.0,93032.0,0.010755]
[1768859968590,0.010754,93045.0,93031.0,0.06939033]
[1768859968790,0.01579931,93050.0,93031.0,0.06939033]
[1768859969294,0.01579931,93050.0,93031.0,0.11331317]
[1768859969996,0.01579931,93050.0,93032.0,0.06939033]
[1768859970398,0.010754,93043.0,93032.0,0.06939033]
[1768859972301,0.01579931,93050.0,93032.0,0.06939033]
[1768859973901,0.010754,93042.0,93032.0,0.06939033]
[1768859974100,0.010755,93041.0,93032.0,0.06939033]
[1768859978504,0.01579931,93050.0,93032.0,0.06939033]
[1768859978706,0.010754,93044.0,93032.0,0.06939033]
[1768859979100,0.010754,93046.0,93033.0,0.06939033]
[1768859979297,0.010754,93046.0,93034.0,0.06939033]
[1768859980002,0.01682988,93053.0,93034.0,0.06939033]
[1768859980308,0.010754,93042.0,93030.0,0.09676]
[1768859980504,0.010755,93041.0,93030.0,0.09676]
[1768859980702,0.010755,93041.0,93030.0,0.16615033]
[1768859980902,0.010755,93041.0,93031.0,0.06939033]
[1768859981609,0.010755,93041.0,93032.0,0.06555496]
[1768859984405,0.010755,93039.0,93032.0,0.06555496]
[1768859984604,0.010754,93049.0,93032.0,0.06555496]
[1768859985520,0.010755,93039.0,93032.0,0.06555496]
[1768859985926,0.010755,93040.0,93032.0,0.06555496]
[1768859988329,0.010755,93040.0,93032.0,0.1126034]
[1768859988627,0.010755,93040.0,93033.0,0.06555496]
[1768859990229,0.010754,93049.0,93034.0,0.06555496]
[1768859990730,0.010754,93042.0,93034.0,0.06555496]
[1768859991123,0.18040923,93050.0,93034.0,0.06555496]
[1768859991324,0.18040923,93050.0,93034.0,0.1126034]
[1768859993534,0.010754,93043.0,93034.0,0.1126034]
[1768859993722,0.010754,93043.0,93035.0,0.06749675]
[1768859993929,0.01091416,93054.0,93035.0,0.11150503]
[1768859993930,0.00016116,93054.0,93035.0,0.11150503]
[1768859994233,0.01839764,93054.0,93035.0,0.11150503]
[1768859994832,0.010754,93042.0,93037.0,0.06749675]
[1768859995333,0.18040923,93050.0,93032.0,0.04400828]
[1768859996129,0.01972189,93049.0,93029.0,0.00236487]
[1768859996335,0.010756,93031.0,93029.0,8.7e-07]